Workbook

Sheet Registro
A1: TITULO | B1: ESTUDIO DE IMPACTO AMBIENTAL: PROCEDIMIENTO Y HERRAMIENTAS
A3: AUTORES | B3: ROBERTO PECHE GONZALEZ
B4: DOLORES ENCINAS MALAGON
B5: ZURIÑE GOMEZ DE BALUGERA LOPEZ DE ALDA
B6: MARIA ARRITOKIETA ORTUZAR IRAGORRI
A8: ISBN: | B8: 978-84-613-9696-2

Sheet 195-202
A1: nº de indicador: | B1: 195 | C1: función de transformación: | D1: CA=1 | E1: (-100)<I<0
A2: Indicador: | B2: Nº de especies protegidas en relación a las condiciones naturales | D2: CA=0,0001*(I^2)-0,02I+1 | E2: 0<I<100
A3: fórmula del indicador
A4: unidad del indicador:
A5: rango de valores del indicador: | B5: -100 - 100 | C5: valor del indicador | D5: 10
A6: Tipo de indicador | B6: 2 (T=0,25) | C6: calidad ambiental | D6: =IF(D5<-100,"valor del indicador fuera de rango",IF(D5<=0,1,IF(D5<=100,0.0001*D5^2-0.02*D5+1,"valor del indicador fuera rango"))) -> 0.810
A7: valor del indicador | B7: calidad ambiental | C7: representación de la función de transformación
A8: -100 | B8: 1.000
A9: -85 | B9: 1.000
A10: -70 | B10: 1.000
A11: -55 | B11: 1.000
A12: -40 | B12: 1.000
A13: -25 | B13: 1.000
A14: 0 | B14: 1.000
A15: 5 | B15: =0.0001*A15^2-0.02*A15+1 -> 0.903
A16: 20 | B16: 0.640
A17: 35 | B17: 0.423
A18: 50 | B18: 0.250
A19: 65 | B19: 0.123
A20: 80 | B20: 0.040
A21: 95 | B21: 0.002
A22: 100 | B22: 0.000
A25: nº de indicador: | B25: 196 | C25: función de transformación: | D25: CA=1 | E25: (-50<x<0)
A26: Indicador: | B26: Nº de especies protegidas en relación a las condiciones anteriores a la actuación | D26: CA=-4E-04x2+1 | E26: 0<x<50
A27: fórmula del indicador
A28: unidad del indicador:
A29: rango de valores del indicador: | B29: -50 - 50 | C29: valor del indicador | D29: 20
A30: Tipo de indicador | B30: 2 (T=0,25) | C30: calidad ambiental | D30: =IF(D29<-50,"valor del indicador fuera de rango",IF(D29<=0,1,IF(D29<=50,-0.0004*D29^2+1,"valor del indicador fuera rango"))) -> 0.840
A31: valor del indicador | B31: calidad ambiental | C31: representación de la función de transformación
A32: -50 | B32: 1.000
A33: -40 | B33: 1.000
A34: =+A33+10 -> -30 | B34: 1.000
A35: -25 | B35: 1.000
A36: -20 | B36: 1.000
A37: -15 | B37: 1.000
A38: -10 | B38: 1.000
A39: -5 | B39: 1.000
A40: 0 | B40: =-0.0004*A40^2+1 -> 1.000
A41: 5 | B41: 0.990
A42: 10 | B42: 0.960
A43: 15 | B43: 0.910
A44: 20 | B44: 0.840
A45: 25 | B45: 0.750
A46: 30 | B46: 0.640
A47: 40 | B47: 0.360
A48: 50 | B48: 0.000
A51: nº de indicador: | B51: 197 | C51: función de transformación: | D51: CA=1 | E51: (-100<x<0)
A52: Indicador: | B52: Nº de especies protegidas en relación a las condiciones naturales y ponderadas según la importancia de la categoría de protección | D52: CA=1E-04x2-2E-02x+1 | E52: 0<x<100
A53: fórmula del indicador
A54: unidad del indicador:
A55: rango de valores del indicador: | B55: -100 - 100 | C55: valor del indicador | D55: 4
A56: Tipo de indicador | B56: 2 (T=0,25) | C56: calidad ambiental | D56: =IF(D55<-100,"valor del indicador fuera de rango",IF(D55<=0,1,IF(D55<=100,0.0001*D55^2-0.02*D55+1,"valor del indicador fuera rango"))) -> 0.922
A57: valor del indicador | B57: calidad ambiental | C57: representación de la función de transformación
A58: -100 | B58: 1.000
A59: =+A58+8 -> -92 | B59: 1.000
A60: =+A59+8 -> -84 | B60: 1.000
A61: -76 | B61: 1.000
A62: -68 | B62: 1.000
A63: -60 | B63: 1.000
A64: -52 | B64: 1.000
A65: -44 | B65: 1.000
A66: -36 | B66: 1.000
A67: -28 | B67: 1.000
A68: -20 | B68: 1.000
A69: -12 | B69: 1.000
A70: -4 | B70: 1.000
A71: 0 | B71: 1.000
A72: 4 | B72: =0.0001*A72^2-0.02*A72+1 -> 0.922
A73: 12 | B73: 0.774
A74: 20 | B74: 0.640
A75: 28 | B75: 0.518
A76: 36 | B76: 0.410
A77: 44 | B77: 0.314
A78: 52 | B78: 0.230
A79: 60 | B79: 0.160
A80: 68 | B80: 0.102
A81: 76 | B81: 0.058
A82: 84 | B82: 0.026
A83: 95 | B83: 0.002
A84: 100 | B84: 0.000
A87: nº de indicador: | B87: 198 | C87: función de transformación: | D87: CA=1 | E87: (-50<x<0)
A88: Indicador: | B88: Nº de especies protegidas en relación a las condiciones anteriores a la actuación, ponderando según la importancia de la categoría de protección | D88: CA=-4E-04x2+1 | E88: 0<x<50
A89: fórmula del indicador
A90: unidad del indicador:
A91: rango de valores del indicador: | B91: -50 - 50 | C91: valor del indicador | D91: 30
A92: Tipo de indicador | B92: 2 (T=0,25) | C92: calidad ambiental | D92: =IF(D91<-50,"valor del indicador fuera de rango",IF(D91<=0,1,IF(D91<=50,-0.0004*D91^2+1,"valor del indicador fuera rango"))) -> 0.640
A93: valor del indicador | B93: calidad ambiental | C93: representación de la función de transformación
A94: -50 | B94: 1.000
A95: =+A94+4 -> -46 | B95: 1.000
A96: =+A95+4 -> -42 | B96: 1.000
A97: -38 | B97: 1.000
A98: -34 | B98: 1.000
A99: -30 | B99: 1.000
A100: -26 | B100: 1.000
A101: -22 | B101: 1.000
A102: -18 | B102: 1.000
A103: -14 | B103: 1.000
A104: -10 | B104: 1.000
A105: -6 | B105: 1.000
A106: -2 | B106: 1.000
A107: 0 | B107: 1.000
A108: 2 | B108: =-0.0004*A108^2+1 -> 0.998
A109: 4 | B109: 0.994
A110: 6 | B110: 0.986
A111: 8 | B111: 0.974
A112: 10 | B112: 0.960
A113: 14 | B113: 0.922
A114: 18 | B114: 0.870
A115: 22 | B115: 0.806
A116: 26 | B116: 0.730
A117: 30 | B117: 0.640
A118: 34 | B118: 0.538
A119: 38 | B119: 0.422
A120: 46 | B120: 0.154
A121: 50 | B121: 0.000
A124: nº de indicador: | B124: 199 | C124: función de transformación: | D124: CA=1 | E124: (-100<x<0)
A125: Indicador: | B125: Nº de especies protegidas en relación a las condiciones naturales y ponderadas según la importancia de la categoría de protección y su densidad | D125: CA=1E-04x2-2E-02x+1 | E125: 0<x<100
A126: fórmula del indicador
A127: unidad del indicador:
A128: rango de valores del indicador: | B128: -100 - 100 | C128: valor del indicador | D128: 20
A129: Tipo de indicador | B129: 2 (T=0,25) | C129: calidad ambiental | D129: =IF(D128<-100,"valor del indicador fuera de rango",IF(D128<=0,1,IF(D128<=100,0.0001*D128^2-0.02*D128+1,"valor del indicador fuera rango"))) -> 0.640
A130: valor del indicador | B130: calidad ambiental | C130: representación de la función de transformación
A131: -100 | B131: 1.000
A132: =+A131+8 -> -92 | B132: 1.000
A133: =+A132+8 -> -84 | B133: 1.000
A134: -76 | B134: 1.000
A135: -68 | B135: 1.000
A136: -60 | B136: 1.000
A137: -52 | B137: 1.000
A138: -44 | B138: 1.000
A139: -36 | B139: 1.000
A140: -28 | B140: 1.000
A141: -20 | B141: 1.000
A142: -12 | B142: 1.000
A143: -4 | B143: 1.000
A144: 0 | B144: 1.000
A145: 4 | B145: =0.0001*A145^2-0.02*A145+1 -> 0.922
A146: =+A145+8 -> 12 | B146: 0.774
A147: =+A146+8 -> 20 | B147: 0.640
A148: =+A147+8 -> 28 | B148: 0.518
A149: =+A148+8 -> 36 | B149: 0.410
A150: 44 | B150: 0.314
A151: 52 | B151: 0.230
A152: 60 | B152: 0.160
A153: 68 | B153: 0.102
A154: 76 | B154: 0.058
A155: 84 | B155: 0.026
A156: 95 | B156: 0.002
A157: 100 | B157: 0.000
A160: nº de indicador: | B160: 200 | C160: función de transformación: | D160: CA=1 | E160: (-50<x<0)
A161: Indicador: | B161: Nº de especies protegidas en relación a las condiciones anteriores a la acción, ponderando según la importancia de la categoría de protección y su densidad | D161: CA=-4E-04x2+1 | E161: 0<x<50
A162: fórmula del indicador
A163: unidad del indicador:
A164: rango de valores del indicador: | B164: -50 - 50 | C164: valor del indicador | D164: 30
A165: Tipo de indicador | B165: 2 (T=0,25) | C165: calidad ambiental | D165: =IF(D164<-50,"valor del indicador fuera de rango",IF(D164<=0,1,IF(D164<=50,-0.0004*D164^2+1,"valor del indicador fuera rango"))) -> 0.640
A166: valor del indicador | B166: calidad ambiental | C166: representación de la función de transformación
A167: -50 | B167: 1.000
A168: =+A167+4 -> -46 | B168: 1.000
A169: =+A168+4 -> -42 | B169: 1.000
A170: -38 | B170: 1.000
A171: -34 | B171: 1.000
A172: -30 | B172: 1.000
A173: -26 | B173: 1.000
A174: -22 | B174: 1.000
A175: -18 | B175: 1.000
A176: -14 | B176: 1.000
A177: -10 | B177: 1.000
A178: -6 | B178: 1.000
A179: -2 | B179: 1.000
A180: 0 | B180: 1.000
A181: 2 | B181: =-0.0004*A181^2+1 -> 0.998
A182: 4 | B182: 0.994
A183: 6 | B183: 0.986
A184: 8 | B184: 0.974
A185: 10 | B185: 0.960
A186: 14 | B186: 0.922
A187: 18 | B187: 0.870
A188: 22 | B188: 0.806
A189: 26 | B189: 0.730
A190: 30 | B190: 0.640
A191: 34 | B191: 0.538
A192: 38 | B192: 0.422
A193: 46 | B193: 0.154
A194: 50 | B194: 0.000
A197: nº de indicador: | B197: 201 | C197: función de transformación: | D197: CA=1 | E197: (-100)<I<0
A198: Indicador: | B198: Nº de especies protegidas en relación a las condiciones naturales y ponderadas según la importancia de la categoria de proteccion, densidad y status. | D198: CA=0,0001I^2-0,02I+1 | E198: 0<I<100
A199: fórmula del indicador
A200: unidad del indicador:
A201: rango de valores del indicador: | B201: -100 - 100 | C201: valor del indicador | D201: 10
A202: Tipo de indicador | B202: 2 (T=0,25) | C202: calidad ambiental | D202: =IF(D201<-100,"valor del indicador fuera de rango",IF(D201<=0,1,IF(D201<=100,0.0001*D201^2-0.02*D201+1))) -> 0.810
A203: valor del indicador | B203: calidad ambiental | C203: representación de la función de transformación
A204: -100 | B204: 1.000
A205: =+A204+6 -> -94 | B205: 1.000
A206: =+A205+6 -> -88 | B206: 1.000
A207: -82 | B207: 1.000
A208: -76 | B208: 1.000
A209: -70 | B209: 1.000
A210: -64 | B210: 1.000
A211: -58 | B211: 1.000
A212: -52 | B212: 1.000
... 66 more rows

Sheet 203
A1: nº de indicador: | B1: 203 | C1: función de transformación: | D1: CA=1E-01I | E1: 0<I<10
A2: Indicador: | B2: Nº de especies cada 100 individuos
A3: fórmula del indicador
A4: unidad del indicador:
A5: rango de valores del indicador: | B5: 0 - 10 | C5: valor del indicador | D5: 1
A6: Tipo de indicador | B6: 2 (T=0,25) | C6: calidad ambiental | D6: =IF(D5<0,"valor del indicador fuera de rango",IF(D5<=10,0.1*D5,"valor del indicador fuera rango")) -> 0.100
A7: valor del indicador | B7: calidad ambiental | C7: representación de la función de transformación
A8: 0.0 | B8: =0.1*A8 -> 0.000
A9: =+A8+0.6 -> 0.6 | B9: 0.060
A10: =+A9+0.6 -> 1.2 | B10: 0.120
A11: 1.8 | B11: 0.180
A12: 2.4 | B12: 0.240
A13: 3.0 | B13: 0.300
A14: 3.6 | B14: 0.360
A15: 4.2 | B15: 0.420
A16: 4.8 | B16: 0.480
A17: 5.4 | B17: 0.540
A18: 6.0 | B18: 0.600
A19: 6.6 | B19: 0.660
A20: 7.2 | B20: 0.720
A21: 7.8 | B21: 0.780
A22: 8.4 | B22: 0.840
A23: 9.0 | B23: 0.900
A24: 9.6 | B24: 0.960
A25: 10.0 | B25: 1.000

Sheet 204
A1: nº de indicador: | B1: 204 | C1: función de transformación: | D1: CA=-1E-04I2+1 | E1: 0<I<100
A2: Indicador: | B2: % de corredores afectados
A3: fórmula del indicador
A4: unidad del indicador:
A5: rango de valores del indicador: | B5: 0 - 100 | C5: valor del indicador | D5: 13
A6: Tipo de indicador | B6: 2 (T=0,25) | C6: calidad ambiental | D6: =IF(D5<0,"valor del indicador fuera de rango",IF(D5<=100,-0.0001*(D5^2)+1,"valor del indicador fuera rango")) -> 0.983
A7: valor del indicador | B7: calidad ambiental | C7: representación de la función de transformación
A8: 0 | B8: =-0.0001*(A8^2)+1 -> 1.000
A9: =+A8+6.5 -> 6.5 | B9: 0.996
A10: =+A9+6.5 -> 13.0 | B10: 0.983
A11: 19.5 | B11: 0.962
A12: 26.0 | B12: 0.932
A13: 32.5 | B13: 0.894
A14: 39.0 | B14: 0.848
A15: 45.5 | B15: 0.793
A16: 52.0 | B16: 0.730
A17: 58.5 | B17: 0.658
A18: 65.0 | B18: 0.578
A19: 71.5 | B19: 0.489
A20: 78.0 | B20: 0.392
A21: 84.5 | B21: 0.286
A22: 91.0 | B22: 0.172
A23: 97.5 | B23: 0.049
A24: 100.0 | B24: 0.000

Sheet 205
A1: nº de indicador: | B1: 205 | C1: función de transformación: | D1: CA=-1E-04I2+1 | E1: 0<I<100
A2: Indicador: | B2: % de puntos de paso o rutas migratorias
A3: fórmula del indicador
A4: unidad del indicador:
A5: rango de valores del indicador: | B5: 0 - 100 | C5: valor del indicador | D5: 13
A6: Tipo de indicador | B6: 2 (T=0,25) | C6: calidad ambiental | D6: =IF(D5<0,"valor del indicador fuera de rango",IF(D5<=100,-0.0001*(D5^2)+1,"valor del indicador fuera rango")) -> 0.983
A7: valor del indicador | B7: calidad ambiental | C7: representación de la función de transformación
A8: 0 | B8: =-0.0001*(A8^2)+1 -> 1.000
A9: =+A8+6.5 -> 6.5 | B9: 0.996
A10: =+A9+6.5 -> 13.0 | B10: 0.983
A11: 19.5 | B11: 0.962
A12: 26.0 | B12: 0.932
A13: 32.5 | B13: 0.894
A14: 39.0 | B14: 0.848
A15: 45.5 | B15: 0.793
A16: 52.0 | B16: 0.730
A17: 58.5 | B17: 0.658
A18: 65.0 | B18: 0.578
A19: 71.5 | B19: 0.489
A20: 78.0 | B20: 0.392
A21: 84.5 | B21: 0.286
A22: 91.0 | B22: 0.172
A23: 95.0 | B23: 0.097
A24: =+A22+6.5 -> 97.5 | B24: 0.049
A25: 100.0 | B25: 0.000

Sheet 206-208
A1: nº de indicador: | B1: 206 | C1: función de transformación: | D1: CA=6,67E-03I | E1: 0<I<75
A2: Indicador: | B2: Media ponderada del valor de conservación de los habitats faunísticos según su superficie | D2: CA=4E-04I2-5E-02I+2 | E2: 75<I<100
A3: fórmula del indicador
A4: unidad del indicador:
A5: rango de valores del indicador: | B5: 0 - 100 | C5: valor del indicador | D5: 30
A6: Tipo de indicador | B6: 2 (T=0,25) | C6: calidad ambiental | D6: =IF(_Ind206<0,"valor del indicador fuera de rango",IF(_Ind206<=75,0.00667*_Ind206,IF(_Ind206<=100,#REF!-4*(_Ind206^2)-#REF!-2*_Ind206+2,IF(_Ind206>=100,"valor del indicador fuera rango")))) -> 0.000
A7: valor del indicador | B7: calidad ambiental | C7: representación de la función de transformación
A8: 0 | B8: =0.00667*A8 -> 0.000
A9: 15.0 | B9: 0.100
A10: =+A9+5 -> 20.0 | B10: 0.133
A11: 25.0 | B11: 0.167
A12: 30.0 | B12: 0.200
A13: 35.0 | B13: 0.233
A14: 40.0 | B14: 0.267
A15: 45.0 | B15: 0.300
A16: 50.0 | B16: 0.334
A17: 55.0 | B17: 0.367
A18: 60.0 | B18: 0.400
A19: 65.0 | B19: 0.434
A20: 70.0 | B20: 0.467
A21: 75.0 | B21: =0.0004*A21^2-0.05*A21+2 -> 0.500
A22: 80.0 | B22: 0.560
A23: 85.0 | B23: 0.640
A24: 90.0 | B24: 0.740
A25: 95.0 | B25: 0.860
A26: 100.0 | B26: 1.000
A29: nº de indicador: | B29: 207 | C29: función de transformación: | D29: CA=-1E-04I2+2E-02I | E29: 0<I<100
A30: Indicador: | B30: Valor relativo de conservación, ponderado según lasuperficie de los diferentes hábitats faunísticos
A31: fórmula del indicador
A32: unidad del indicador:
A33: rango de valores del indicador: | B33: 0 - 100 | C33: valor del indicador | D33: 10
A34: Tipo de indicador | B34: 2 (T=0,25) | C34: calidad ambiental | D34: =IF(_Ind207<0,"valor del indicador fuera de rango",IF(_Ind207<=100,-0.0001*(_Ind207^2)+0.02*_Ind207,"valor del indicador fuera rango")) -> 0.000
A35: valor del indicador | B35: calidad ambiental | C35: representación de la función de transformación
A36: 0 | B36: =-0.0001*A36^2+0.02*A36 -> 0.000
A37: 10.0 | B37: 0.190
A38: =+A37+5 -> 15.0 | B38: 0.278
A39: 20.0 | B39: 0.360
A40: 25.0 | B40: 0.438
A41: 30.0 | B41: 0.510
A42: 35.0 | B42: 0.578
A43: 40.0 | B43: 0.640
A44: 45.0 | B44: 0.698
A45: 50.0 | B45: 0.750
A46: 55.0 | B46: 0.798
A47: 60.0 | B47: 0.840
A48: 65.0 | B48: 0.878
A49: 70.0 | B49: 0.910
A50: 75.0 | B50: 0.938
A51: 80.0 | B51: 0.960
A52: 85.0 | B52: 0.978
A53: 90.0 | B53: 0.990
A54: 95.0 | B54: 0.998
A55: 100.0 | B55: 1.000
A58: nº de indicador: | B58: 208 | C58: función de transformación: | D58: CA=1 | E58: (-50)<I<0
A59: Indicador: | B59: % de variación del valor deconservación de las diferentes unidades faunísticas | D59: CA=(-4E-04I2+1) | E59: 0<I<50
A60: fórmula del indicador
A61: unidad del indicador:
A62: rango de valores del indicador: | B62: 0 - 100 | C62: valor del indicador | D62: 20
A63: Tipo de indicador | B63: 2 (T=0,25) | C63: calidad ambiental | D63: =IF(_Ind208<-50,"valor del indicador fuera de rango",IF(_Ind208<=0,1,IF(_Ind208<=50,(-0.0004*(_Ind208^2))+1,"valor del indicador fuera rango"))) -> 1.000
A64: valor del indicador | B64: calidad ambiental | C64: representación de la función de transformación
A65: -50 | B65: =1 -> 1.000
A66: =+A65+10 -> -40 | B66: =1 -> 1.000
A67: =+A66+5 -> -35 | B67: =1 -> 1.000
A68: -30 | B68: =1 -> 1.000
A69: -25 | B69: =1 -> 1.000
A70: -20 | B70: =1 -> 1.000
A71: -15 | B71: =1 -> 1.000
A72: -10 | B72: =1 -> 1.000
A73: -5 | B73: =1 -> 1.000
A74: 0 | B74: =1 -> 1.000
A75: 5 | B75: =-0.0004*(A75^2)+1 -> 0.990
A76: 10 | B76: 0.960
A77: 15 | B77: 0.910
A78: 20 | B78: 0.840
A79: 25 | B79: 0.750
A80: 30 | B80: 0.640
A81: 35 | B81: 0.510
A82: 40 | B82: 0.360
A83: 45 | B83: 0.190
A84: 50 | B84: 0.000
